Cogmind - Beta 16 @@@ ROGUE MODE // 2025.10.24 @ 11:46:12 Player: Rocko1345 Result: Self-destructed Performance ------------- Evolutions (3) 1500 Regions Visited (6) 1200 Robots Destroyed (40) 200 Value Destroyed (1242) 1242 Prototype IDs (6) 120 Alien Tech Used (0) 0 Bonus (214) 214 TOTAL SCORE: 4476 Bonus ------- Follower Combat Kills 14 Entered Garrisons 200 Cogmind --------- Core Integrity 77/700 Matter 123/300 Energy 300/300 System Corruption 3% Temperature Cool (0) Movement Core (150) Ox2 Location -7/Garrison Parts ------- > --- POWER (2) -------- Enhanced Nuclear Core > --- PROPULSION (3) --- (None) > --- UTILITY (6) ------ Cryofiber Web Signal Interpreter Improved Signal Interpreter Advanced Terrain Scan Processor > --- WEAPON (2) ------- (None) > --- INVENTORY (5) ---- System Shield System Restoration Module System Restoration Module Peak State ------------ > --- POWER ------------ Enhanced Nuclear Core Micro Nuclear Core > --- PROPULSION ------- Gravmag System Gravmag System Improved Airjet > --- UTILITY ---------- Cryofiber Web Improved Sensor Array Signal Interpreter Improved Signal Interpreter Improved Terrain Scanner Advanced Terrain Scan Processor > --- WEAPON ----------- Remote Datajack Power Maul > --- INVENTORY -------- System Restoration Module System Restoration Module Cooled Particle Cannon Heavy Missile Launcher Heavy Missile Launcher [Rating: 49] Favorites ----------- Power Light Ion Engine Engine Light Ion Engine Power Core Light Nuclear Core Propulsion Light Treads Treads Light Treads Hover Unit Gravmag System Utility Improved Terrain Scanner Device Improved Terrain Scanner Storage Small Storage Unit Processor Signal Interpreter Hackware Hacking Suite Weapon Light Assault Rifle Energy Gun Shock Rifle Energy Cannon Cooled Particle Cannon Ballistic Gun Light Assault Rifle Ballistic Cannon Light Cannon Launcher Heavy Missile Launcher Special Weapon Remote Datajack Impact Weapon Power Maul Build | -11 -10 -10 -10 -8 -7 -7 ------- Run | Yrd Mat Min Sub Mat Fac Gar Slots Evolved 6 | . . . . 4 2 . Power 1 | . . . . . 1 . Propulsion 1 | . . . . . 1 . Utility 4 | . . . . 4 . . Weapon . | . . . . . . . Parts Attached 42 | 7 3 1 . 16 13 2 Power 8 | 1 1 . . 2 4 . Engine 3 | 1 . . . 2 . . Core 5 | . 1 . . . 4 . Reactor . | . . . . . . . Propulsion 10 | 2 . . . 5 1 2 Treads 4 | 2 . . . . . 2 Leg . | . . . . . . . Wheel . | . . . . . . . Hover 6 | . . . . 5 1 . Flight . | . . . . . . . Utility 15 | 2 1 1 . 7 4 . Device 5 | 1 . . . 2 2 . Storage 6 | 1 1 1 . 3 . . Processor 3 | . . . . 1 2 . Hackware 1 | . . . . 1 . . Protection . | . . . . . . . Artifact . | . . . . . . . Weapon 9 | 2 1 . . 2 4 . Energy Gun 1 | . . . . . 1 . Energy Cannon 1 | . . . . . 1 . Ballistic Gun 2 | 2 . . . . . . Ballistic Cannon 1 | . 1 . . . . . Launcher 2 | . . . . 2 . . Special Weapon 1 | . . . . . 1 . Impact Weapon 1 | . . . . . 1 . Slashing Weapon . | . . . . . . . Piercing Weapon . | . . . . . . . Special Melee Weapon . | . . . . . . . Unidentified Prototypes 4 | . . . . 1 3 . Corrupted Parts 2 | . . . . . . 2 System Corruption 2 | . . . . . . 2 Parts Lost 20 | . 1 . 6 . 1 12 Power 4 | . 1 . 1 . 1 1 Propulsion 7 | . . . 2 . . 5 Utility 3 | . . . 1 . . 2 Weapon 6 | . . . 2 . . 4 Highest Loss Streak 12 | . 1 . 6 . 1 12 To Critical Strikes 1 | . . . . . . 1 Average Backups 4 | . 3 7 6 4 4 4 Power . | . . . . . . . Propulsion . | . . . . . . . Utility 3 | . 2 6 5 2 2 3 Weapon 1 | . . 1 . 1 2 1 Tool/Special . | . . . . . . . Unused Backups 9 | . . . 1 1 4 3 Power . | . . . . . . . Propulsion 2 | . . . . 1 1 . Utility 7 | . . . 1 . 3 3 Weapon . | . . . . . . . Tool/Special . | . . . . . . . Average Slot Usage (%) 92 | . 99 100 77 71 93 80 Engine 7 | . 13 . . 6 5 . Core 5 | . . 14 10 . 8 12 Treads 14 | . 28 28 20 . . 1 Hover 9 | . . . . 17 21 13 Device 15 | . 14 14 9 10 19 17 Storage 11 | . 14 14 12 19 6 . Processor 6 | . . . . 7 13 23 Hackware 2 | . . . . 7 5 . Ballistic Gun 9 | . 19 14 14 . . . Ballistic Cannon 5 | . 8 14 9 . . . Special Weapon 1 | . . . . . 4 4 Peak Build Rating 49 | 9 12 12 12 29 49 48 Average Rating 21 | 5 9 12 8 21 40 37 On Entrance 15 | . 9 12 12 . 29 48 Avg Prop Armor Cover (%) . | . . . . . . . Naked Turns 35 | . . . 19 16 . . Heaviest Build 30 | 11 20 30 30 18 25 23 Greatest Support 40 | 40 40 40 40 18 29 29 Greatest Overweight (x) 7 | . . . . . . 7 Average Overweight (x) . | . . . . . . . Largest Inventory Capacity 15 | 8 10 15 15 5 5 5 Average Capacity 7 | 7 8 14 12 5 5 5 Most Carried 8 | 2 8 8 7 5 5 5 Average Carried 4 | . 4 7 6 4 4 4 Final Capacity 15 | 8 10 15 5 5 5 5 Final Carried 7 | . 7 7 5 5 5 3 Class Distribution -------------------- 80% | Mutant 19% | Scout Dominant Class ---------------- Mutant | -10/Materials Mutant | -10/Mines Mutant | -10/Subcaves Mutant | -8/Materials Scout | -7/Factory Scout | -7/Garrison Resources | -11 -10 -10 -10 -8 -7 -7 ----------- Run | Yrd Mat Min Sub Mat Fac Gar Matter Collected 893 | 227 210 . 38 144 192 82 Remotely . | . . . . . . . Salvage Created 1040 | 13 290 10 57 221 292 157 Parts 65 | 3 26 1 3 11 14 7 Haulers Intercepted . | . . . . . . . Recyclers Shooed 1 | . 1 . . . . . Parts Field Recycled . | . . . . . . . Retrieved Matter . | . . . . . . . Parts Self-Destructed 3 | . . . 3 . . . Prevented . | . . . . . . . Parts Restored . | . . . . . . . Kills | -11 -10 -10 -10 -8 -7 -7 ------- Run | Yrd Mat Min Sub Mat Fac Gar Combat Hostiles Destroyed 30 | . 8 1 1 6 6 8 Melee 3 | . . . . . . 3 Guns 8 | . 7 . 1 . . . Cannons 2 | . 1 1 . . . . AOE 14 | . . . . 6 5 3 Classes Destroyed 14 | 1 4 . 1 3 3 2 Worker 3 | . . . . . 3 . Tunneler 1 | 1 . . . . . . Recycler 1 | . . . . . 1 . Mechanic 1 | . 1 . . . . . Operator 1 | . 1 . . . . . Watcher 3 | . . . . 2 1 . Swarmer 13 | . 3 1 . . 4 5 Grunt 9 | . 5 . . 4 . . Brawler 1 | . . . . 1 . . Protector 1 | . . . . . . 1 Sentry 3 | . . . . 1 1 1 Demolisher 1 | . . . . . . 1 Programmer 1 | . . . . . 1 . Subdweller 1 | . . . 1 . . . Best Kill Streak 7 | 1 3 1 1 3 6 7 Combat Bots Only 7 | . 3 1 1 3 5 7 Max Kills in Single Turn 4 | 1 1 1 1 2 4 2 Gunslinging . | . . . . . . . Exploded 3 | . . . . 2 3 2 Melee 1 | . . . . . . 1 Uniques/NPCs Destroyed . | . . . . . . . Combat | -11 -10 -10 -10 -8 -7 -7 -------- Run | Yrd Mat Min Sub Mat Fac Gar Hostile Shots Fired 236 | . 43 9 15 7 74 88 Missed 92 | . 8 1 5 2 43 33 Hits 144 | . 35 8 10 5 31 55 Projectile 144 | . 35 8 10 5 31 55 AOE 19 | . . . 3 . . 16 Critical Strikes 2 | . . . . . . 2 Part Disruptions 1 | . 1 . . . . . Damage Taken 2707 | . 476 101 353 86 434 1257 Core 915 | . 72 32 144 44 98 525 Absorbed by Shields . | . . . . . . . Regen/Repaired (Parts) 37 | . . . . . 37 . Core Remaining (%) 64 | 100 . . . 92 . . Volleys Fired 86 | 4 45 1 6 11 15 4 Largest 2 | 2 2 2 2 1 1 1 Hottest 50 | 40 50 50 40 39 50 39 Shots Fired 140 | 8 90 2 10 11 15 4 Gun 100 | 8 73 1 10 . 8 . Cannon 21 | . 17 1 . . 3 . Launcher 19 | . . . . 11 4 4 Special . | . . . . . . . Kinetic 110 | 8 90 2 10 . . . Thermal 3 | . . . . . 3 . Explosive 19 | . . . . 11 4 4 Electromagnetic 8 | . . . . . 8 . Robot Hit Streak 19 | 2 11 . 9 18 19 2 Robot Miss Streak 4 | 1 3 3 4 . 3 2 Penetration Max . | . . . . . . . Secondary Targets 1 | . . . 1 . . . Max Gunslinging Chain 1 | . . . 1 . . . Shots Hit Robots 89 | 4 48 . 9 9 12 7 Core Hits 62 | 2 23 1 2 13 12 9 Critical Kills 1 | . . . . . 1 . Critical Parts Destroyed 2 | . . . . . . 2 Critical Strikes 3 | . . . . . 1 2 Smash 3 | . . . . . 1 2 Melee Attacks 17 | . . . . . 4 13 Impact 17 | . . . . . 4 13 Slashing . | . . . . . . . Piercing . | . . . . . . . Sneak Attacks 3 | . . . . . 3 . Combat Hostiles . | . . . . . . . Follow-up Attacks . | . . . . . . . Damage Inflicted 2681 | 31 419 19 39 678 952 543 Guns 478 | 31 317 . 39 . 91 . Cannons 147 | . 102 19 . . 26 . Explosions 1486 | . . . . 678 496 312 Melee 565 | . . . . . 339 226 Ramming 5 | . . . . . . 5 Kinetic 508 | 31 419 19 39 . . . Thermal 157 | . . . . . 157 . Explosive 1355 | . . . . 678 365 312 Electromagnetic 91 | . . . . . 91 . Impact 565 | . . . . . 339 226 Slashing . | . . . . . . . Piercing . | . . . . . . . Highest Corruption 3 | . 1 1 1 . . 3 Average Corruption 1 | . 1 1 1 . . 2 Corruption Purged . | . . . . . . . Corruption Blocked . | . . . . . . . Effects 11 | . 7 3 1 . . . Message Errors 2 | . 2 . . . . . Matter Fused 4 | . 3 . 1 . . . Energy Discharges 1 | . . 1 . . . . Data Loss (minor) 2 | . . 2 . . . . Data Loss (major) 1 | . 1 . . . . . Alerts 1 | . 1 . . . . . Overload Shots . | . . . . . . . Overflow Damage 279 | . . . . . 179 100 Projectiles . | . . . . . . . Explosions 21 | . . . . . 21 . Melee 258 | . . . . . 158 100 Knockbacks 3 | . 2 . . . 1 . Impact 1 | . . . . . 1 . Kinetic 2 | . 2 . . . . . Secondary . | . . . . . . . Self-Inflicted Damage 186 | . . . . 12 73 101 Shots 7 | . . . . 2 2 3 Rammed 5 | . . . . . . 5 Targets Rammed 5 | . . . . . . 5 Kicked . | . . . . . . . Crushed . | . . . . . . . Highest Temperature 34 | . 34 26 . . 20 . Average Temperature 11 | . 11 13 . . 10 . Received Heat Transfer 315 | . 168 12 12 27 72 24 Siege Activations . | . . . . . . . Martial Activations . | . . . . . . . Shielding Activations . | . . . . . . . Robots Disrupted . | . . . . . . . Combat Hostiles . | . . . . . . . Robots Corrupted 4 | . . . . . 2 2 Combat Hostiles 3 | . . . . . 1 2 Parts Fried 4 | . . . . . 2 2 Impact Corruptions 7 | . . . . . 3 4 Robots Melted . | . . . . . . . Combat Hostiles . | . . . . . . . Parts Melted . | . . . . . . . Heat Transferred 137 | . . . . . 137 . Parts Sabotaged . | . . . . . . . Parts Stolen . | . . . . . . . Parts Stripped . | . . . . . . . Power Chain Reactions . | . . . . . . . Alert | -11 -10 -10 -10 -8 -7 -7 ------- Run | Yrd Mat Min Sub Mat Fac Gar Maximum Alert Level 1 | . . . . . . 1 Low Security (%) 98 | 100 100 100 . 100 100 63 Level 1 1 | . . . . . . 36 Level 2 . | . . . . . . . Level 3 . | . . . . . . . Level 4 . | . . . . . . . Level 5 . | . . . . . . . High Security . | . . . . . . . Max Security . | . . . . . . . Peak Influence 262 | 5 60 97 . 193 193 262 Initial 82 | . . 7 . . 82 35 Average 50 | . 17 6 . 71 94 141 Influence Increases 1387 | 5 296 97 . 338 329 322 Destroy 0b10 Robot/C 600 | . 160 60 . 120 120 140 Destroy 0b10 Robot/NC 55 | 5 10 . . 10 25 5 Destroy Leader 116 | . 40 10 . 24 32 10 Allied During Kill 4 | . . 4 . . . . Successful Hack 89 | . 41 . . 10 10 28 Disable Machine 135 | . 30 15 . 45 45 . Destroy Structure 178 | . . 8 . 99 37 34 Partial Spotted 75 | . . . . 30 45 . Lose Combat Pursuer 135 | . 15 . . . 15 105 Influence Decreases 1150 | 5 275 31 87 155 461 136 Entered New Map 177 | . . 14 46 . 101 16 Time Decay 802 | 5 265 17 20 145 350 . Lost Part 161 | . 10 . 21 . 10 120 Lost Ally 10 | . . . . 10 . . Squads Dispatched 7 | . 4 1 . . 2 . Investigation 2 | . 2 . . . . . Extermination 2 | . . . . . 2 . Reinforcement 2 | . 2 . . . . . Assault 1 | . . 1 . . . . Garrison . | . . . . . . . Intercept . | . . . . . . . Searches Triggered . | . . . . . . . Construction Impeded . | . . . . . . . Haulers Reinforced . | . . . . . . . Active Scanning Responses . | . . . . . . . Cargo Convoy Interrupts . | . . . . . . . Stealth | -11 -10 -10 -10 -8 -7 -7 --------- Run | Yrd Mat Min Sub Mat Fac Gar Distress Signals 3 | . 2 . . 1 . . Communications Jammed . | . . . . . . . Distress Signals . | . . . . . . . Times Spotted 61 | . 21 3 6 10 8 13 Peak Tracking Total 12 | . 3 3 5 3 5 12 Tactical Retreats 3 | . 1 . . . 1 1 Traps | -11 -10 -10 -10 -8 -7 -7 ------- Run | Yrd Mat Min Sub Mat Fac Gar Traps Triggered 5 | . 3 . . . 1 1 Indirectly . | . . . . . . . Trap Hack Attempts . | . . . . . . . Triggered . | . . . . . . . Disarmed . | . . . . . . . Reprogrammed 6 | . 6 . . . . . Reused . | . . . . . . . Traps Extracted . | . . . . . . . Installed . | . . . . . . . Triggered . | . . . . . . . Machines | -11 -10 -10 -10 -8 -7 -7 ---------- Run | Yrd Mat Min Sub Mat Fac Gar Machines Disabled 9 | . 2 1 . 3 3 . Max in Single Turn 2 | . 1 . . 1 2 . Machines Repaired . | . . . . . . . Machines Dismantled . | . . . . . . . Machines Sabotaged . | . . . . . . . Overloaded Fab Kills . | . . . . . . . Hacking | -11 -10 -10 -10 -8 -7 -7 --------- Run | Yrd Mat Min Sub Mat Fac Gar Machines Accessed 24 | . 6 . . 6 10 2 Terminals 14 | . 5 . . 4 3 2 Fabricators 1 | . . . . . 1 . Repair Stations 2 | . . . . 1 1 . Recycling Units 3 | . 1 . . . 2 . Scanalyzers 2 | . . . . 1 1 . Garrison Access 2 | . . . . . 2 . Total Hacks 54 | . 12 . . 19 19 4 Successful 30 | . 8 . . 12 8 2 Failed 24 | . 4 . . 7 11 2 Catastrophic 3 | . 2 . . 1 . . Database Lockouts . | . . . . . . . Manual 12 | . 3 . . 8 1 . Terminals 35 | . 11 . . 15 5 4 Fabricators 1 | . . . . . 1 . Repair Stations 3 | . . . . 1 2 . Recycling Units 5 | . 1 . . . 4 . Scanalyzers 7 | . . . . 3 4 . Garrison Access 3 | . . . . . 3 . Terminal Hacks 13 | . 5 . . 5 1 2 Record 2 | . . . . 1 1 . Prototype ID Bank 1 | . . . . 1 . . Branch Access Points 1 | . 1 . . . . . Emergency Access Points 1 | . . . . . . 1 Alert Level 1 | . . . . 1 . . Locate Traps 3 | . 3 . . . . . Reprogram Traps 1 | . 1 . . . . . Dispatch Records 1 | . . . . 1 . . Hauler Manifests 1 | . . . . 1 . . Patrol Navigation 1 | . . . . . . 1 Fabricator Hacks . | . . . . . . . Repair Station Hacks 2 | . . . . . 2 . Scan Component 1 | . . . . . 1 . Repair 1 | . . . . . 1 . Recycling Unit Hacks 3 | . . . . . 3 . Report Inventory 2 | . . . . . 2 . Retrieve Components 1 | . . . . . 1 . Scanalyzer 4 | . . . . 3 1 . Retrieve Study 4 | . . . . 3 1 . Garrison Access Hacks 1 | . . . . . 1 . Unlock Access 1 | . . . . . 1 . Unauthorized Hacks 6 | . 2 . . 4 . . Terminals 5 | . 2 . . 3 . . Assimilate 2 | . 1 . . 1 . . Botnet 3 | . 1 . . 2 . . Fabricators . | . . . . . . . Repair Stations 1 | . . . . 1 . . Mechanics 1 | . . . . 1 . . Recycling Units . | . . . . . . . Scanalyzers . | . . . . . . . Garrison Access . | . . . . . . . Data Cores Recovered . | . . . . . . . Used . | . . . . . . . Hacking Detections 19 | . 5 . . 4 8 2 Full Trace Events 2 | . 2 . . . . . Feedback Events . | . . . . . . . Feedback Blocked . | . . . . . . . Robot Schematics Acquired . | . . . . . . . Robots Built . | . . . . . . . Authchips . | . . . . . . . Time . | . . . . . . . Total Robot Build Rating . | . . . . . . . Part Schematics Acquired . | . . . . . . . Parts Built . | . . . . . . . Authchips . | . . . . . . . Time . | . . . . . . . Total Part Build Rating . | . . . . . . . Part Studies Acquired 2 | . . . . 1 1 . Parts Repaired 1 | . . . . . 1 . Time 44 | . . . . . 44 . Parts Recycled . | . . . . . . . Recycled Matter . | . . . . . . . Retrieved Matter . | . . . . . . . Retrieved Components 1 | . . . . . 1 . Parts Scanalyzed . | . . . . . . . Part Schematics Acquired . | . . . . . . . Parts Damaged . | . . . . . . . Bothacking | -11 -10 -10 -10 -8 -7 -7 ------------ Run | Yrd Mat Min Sub Mat Fac Gar Used RIF Installer . | . . . . . . . Robots Hacked . | . . . . . . . Non-combat . | . . . . . . . Combat . | . . . . . . . Robot Hacks Applied . | . . . . . . . Relay Couplers Released . | . . . . . . . Fabnet Peak Effective % . | . . . . . . . Robots Rewired . | . . . . . . . Allies Hacked . | . . . . . . . Hacks Repelled . | . . . . . . . Allies | -11 -10 -10 -10 -8 -7 -7 -------- Run | Yrd Mat Min Sub Mat Fac Gar Total Allies 2 | . . 1 . 1 . . Largest Group 1 | . . 1 1 1 . . Highest-Rated Group 31 | . . 31 31 10 . . Highest-Rated Ally 31 | . . 31 31 10 . . Total Orders . | . . . . . . . Ally Attacks 5 | . . 1 4 . . . Total Damage 169 | . . 127 42 . . . Kills 2 | . . 2 . . . . Allies Corrupted . | . . . . . . . Allies Melted . | . . . . . . . Intel | -11 -10 -10 -10 -8 -7 -7 ------- Run | Yrd Mat Min Sub Mat Fac Gar Active Infowar (turns) 2507 | 33 956 357 56 236 782 87 Sensors 519 | . . . . . 436 83 Terrain 2507 | 33 956 357 56 236 782 87 Robot Analysis Total . | . . . . . . . Derelict Logs Recovered . | . . . . . . . Drone Launches . | . . . . . . . Drone Recoveries . | . . . . . . . Exploration | -11 -10 -10 -10 -8 -7 -7 ------------- Run | Yrd Mat Min Sub Mat Fac Gar Turns Passed 2800 | 118 956 357 87 365 782 135 Spaces Moved 2674 | 75 507 219 71 558 1128 116 Core 92 | 23 . . 38 24 . 7 Treads 814 | 52 507 219 33 . . 3 Legs . | . . . . . . . Wheels . | . . . . . . . Hover 1768 | . . . . 534 1128 106 Flight . | . . . . . . . Fastest Speed 46 | 50 160 160 50 46 48 48 Average Speed 83 | 126 160 160 101 50 48 60 Slowest Speed 400 | 160 160 160 160 56 56 400 Overloaded Moves . | . . . . . . . Propulsion Burnouts . | . . . . . . . Robots Hopped . | . . . . . . . Potential Cave-ins . | . . . . . . . Cave-ins Triggered . | . . . . . . . Exploration Rate (%) 28 | 4 68 41 4 35 26 21 Regions Visited 6 Branch Regions 2 Pre-discovered Areas . | . . . . . . . Known Exits Taken 3 | . 1 . . 1 1 . Unknown Exits Taken 3 | 1 . 1 1 . . . Scrap Searched . | . . . . . . . Spaces Dug 11 | . . . . 10 1 . Terrain Destroyed 192 | . . . . 105 45 42 Melee 1 | . . . . . 1 . Projectile . | . . . . . . . AOE 191 | . . . . 105 44 42 Terrain Rammed . | . . . . . . . Walls Destroyed . | . . . . . . . Machines Disabled . | . . . . . . . Actions | -11 -10 -10 -10 -8 -7 -7 --------- Run | Yrd Mat Min Sub Mat Fac Gar Total 3093 | 92 576 224 77 633 1346 145 Wait 165 | . 12 2 . 19 130 2 Move 2668 | 74 506 218 70 557 1127 116 Hop . | . . . . . . . Pick Up 62 | 7 9 1 . 17 28 . Fast Attach 4 | . . . . . 2 2 Attach 36 | 7 1 . 1 15 10 2 Detach 5 | . . . . 4 1 . Swap 12 | . 2 1 . 3 5 1 Drop 33 | . 1 1 . 7 24 . Fire 86 | 4 45 1 6 11 15 4 Melee 17 | . . . . . 4 13 Ram 5 | . . . . . . 5 Kick . | . . . . . . . Crush . | . . . . . . . Escape Stasis . | . . . . . . . Rewire . | . . . . . . . Trap . | . . . . . . . Miscellaneous . | . . . . . . . Route ------- -11/Scrapyard -10/Materials (discovered 3 exits: [*Mat] / *Min x2) -10/Mines -10/Subcaves -8/Materials -7/Factory (discovered 2 exits: *Fac / Gar) -7/Garrison History --------- Turn | Location | Event 9 | -11/Scrapyard | Discovered new exit (range 15) 119 | -11/Scrapyard | Entered Materials 239 | -10/Materials | Discovered new exit (range 8) 310 | -10/Materials | Build established: Mutant 643 | -10/Materials | Discovered new exit (range 14) 1027 | -10/Materials | Identified exit to Mines 1075 | -10/Materials | Entered Mines 1321 | -10/Mines | Met a Derelict testing a Signal Generator 1421 | -10/Mines | Discovered new exit (range 6) 1432 | -10/Mines | Entered Subcaves 1432 | -10/Subcaves | Accompanied by 1 ally 1437 | -10/Subcaves | Discovered new exit (range 16) 1484 | -10/Subcaves | Ambushed by Subdweller buried in earth 1491 | -10/Subcaves | Core integrity fell below 50% 1496 | -10/Subcaves | Ambushed by Subdweller buried in earth 1496 | -10/Subcaves | Ambushed by Subdweller buried in earth 1500 | -10/Subcaves | Released all parts (2) 1502 | -10/Subcaves | Core integrity fell below 20% 1519 | -10/Subcaves | Entered Materials 1519 | -8/Materials | Evolved 4 slots: Utility x4 1529 | -8/Materials | Lost 6 parts (1p2n1u2w) 1839 | -8/Materials | Discovered new exit (range 14) 1860 | -8/Materials | Identified exit to Factory 1884 | -8/Materials | Entered Factory 1884 | -7/Factory | Evolved 2 slots: Power x1, Propulsion x1 2110 | -7/Factory | Repaired Gravmag System+ 2248 | -7/Factory | Discovered new exit (range 10) 2279 | -7/Factory | Identified exit to Factory 2500 | -7/Factory | Build established: Scout 2666 | -7/Factory | Identified exit to Garrison 2666 | -7/Factory | Entered Garrison 2773 | -7/Garrison | Core integrity fell below 50% 2796 | -7/Garrison | Destroyed 7 combat bots 2800 | -7/Garrison | Core integrity fell below 20% 2801 | -7/Garrison | Self-destructed Last Messages --------------- 02768_ Imp. Signal Interpreter temporarily disabled. 02768_ Cryofiber Web temporarily disabled. 02775_ I-36 Angel destroyed. 02776_ The unstable cave ceiling collapses. 02776_ Lgt. Treads destroyed. 02778_ The unstable cave ceiling collapses. 02778_ Hvy. Missile Launcher destroyed. 02780_ Lgt. Treads destroyed. 02781_ The unstable cave ceiling collapses. 02790_ Power Maul destroyed. 02791_ The unstable cave ceiling collapses. 02793_ Slammed into D-53 Grenadier. 02794_ The unstable cave ceiling collapses. 02795_ Slammed into D-53 Grenadier. 02795_ Destabilizing: System corrupted (+1). 02796_ Slammed into D-53 Grenadier. 02797_ The unstable cave ceiling collapses. 02798_ Slammed into D-53 Grenadier. 02799_ D-53 Grenadier destroyed. 02800_ Penetrated by Slug. Map ----- +----------------------------------------------------+ | ??????????????????????????????????????### ##?????? | | ????????????????????????????????????????# #??????? | | ????????????????????????????????????????# #??????? | | ????????????????????????????????????????# #??????? | | ?????????????????????????????????"""##### #??????? | | +????????????????????????? #??????? | | ?????????????????????????????????###+#### #??????? | | ????????????????????????????????????????# #??????? | | ??+?????????????????????????????????????# #???#### | | ????????????????????????????????????????# #???# | | ??????????????????????????????????????### ##### | | ??+???????????????????????????????????+ | | ??????????????????????????????#####???# | | ??????+??+????????????????????#"T"##### ######### | | ??????????????????????????????#" #???????? | | ??????????????????????????????######### #???????? | | ??????????????????????????????????????# ##??????? | | ????????????????????????????########### #??????? | | ????????????????????????????# ##?????? | | ????????????????????????????# ####### % #?????? | | ?????????????????????######## ####### = #?????? | | ?????????????????????+ # # #?????? | | ????????????????###### # ## #?????? | | ?????????????#+## ## #?????? | | ?????????? # #?????? | | ?????????? h @ #???????? | | ????????????????# ## ## # #???????? | | ?????????????????????# # ### #??????? | | ??????????????????? # ##??????? | | ????????????????? s # # ##???????? | | ????????????????" ### ###????????? | | ??????????????+?" #?####??????????? | | ????????????????# ## ## ###???????????????? | | ????????????????# ?# ## #?????????????????? | | ????????????????# ? ? ?????????????????? | | ????????????????+ ?? ? ????????+????????? | | ????????????????#?? ##??+?????????????? | | ??????????????????? ##""""## ##?????????????????? | | ???????????????????????????# #??????????????????? | | ???????????????????????????# #??????????????????? | | ???????????????????????????? ???????????????????? | | ??????+??????????+????????????+??????????????????? | | ?????????????????????????????????????+??+???+????? | | ?????????????????????????????????????????????????? | | ?????????????????????????????????????????????????? | | ?+???????????????????????????????????????????????? | | ????????????+????????????????????????????????????? | | ?????????????????????????????????????????????????? | | ?????+???????????????????????????????????????????? | | ????????????+?????+??????????????????????????????? | +----------------------------------------------------+ Best States ------------- Heat Dissipation 61 Energy Generation 27 Energy Capacity 365 Matter Stores 300 Matter Capacity 450 Sight Range 16 Robot Scan Range 15 Terrain Scan Range 16 Terrain Scan Density 210 Base Temperature (-) 100 Evasion (%) 55 Recoil Reduction 2 Offensive Hacking 10 Item Schematics ----------------- None Robot Schematics ------------------ None Fabricated ------------ Nothing Repaired ---------- Gravmag System | 17% | -7/Factory Studied --------- Lgt. Deuterium Engine | -8/Materials | Hacked Gravmag System | -7/Factory | Hacked Alien Tech Used ----------------- None Achievements -------------- A Problem For Future Me Do Not Disturb Resistances Are Futile Challenges ------------ None Game ------ Seed GuidanceScrapEdition Manual? 0 Play Time 00:37:30 Cumulative 194.7 hours Start 2025.10.24 @ 11:10:12 End 2025.10.24 @ 11:46:12 Sessions 1 Manual Loads 0 Difficulty Rogue Special Mode None Game No. 229 Rogue 55 Adventurer 174 Explorer 0 Win Type - Total 1 Types 1/0/0/0/0/0/0/0/0/0 Lore% 42 Gallery% 56 Achievement% 32 Wizard Run 0 Options --------- Layout 0 ASCII 0 Keyboard 1 Movement Numpad Keybinds 0 Fullscreen 1 Font 18/Terminus Map View 76x50 Zoom Use 0% Tactical HUD 1 Map Filters NONE Filters NONE Steam 1 RUN: fa63fe29-fd12-46fd-8d35-fd3d3b638017